fUSD/lending_fUSD_20241223
["ID","MTS","AMOUNT","RATE_DAILY","PERIOD"]
[346469968,1734987033289,-500.0,0.00013698,2]
[346469969,1734987033299,-500.0,0.00013698,2]
[346469970,1734987033308,-500.0,0.00013698,2]
[346469971,1734987033320,-500.0,0.00013698,2]
[346469972,1734987033330,-831.56,0.00013698,2]
[346469973,1734987033340,-500.0,0.00013698,2]
[346469974,1734987033350,-886.48,0.00013698,2]
[346469975,1734987033359,-500.0,0.00013698,2]
[346469976,1734987033369,-863.2,0.00013698,2]
[346469977,1734987033379,-981.52,0.00013698,2]
[346469978,1734987033388,-600.21,0.00013698,2]
[346469979,1734987033398,-500.0,0.00013698,2]
[346469980,1734987033408,-500.0,0.00013698,2]
[346469981,1734987033418,-624.78,0.00013698,2]
[346469982,1734987033428,-500.0,0.00013698,2]
[346469983,1734987033437,-500.0,0.00013698,2]
[346469984,1734987033447,-500.0,0.00013698,2]
[346469985,1734987033456,-500.0,0.00013698,2]
[346469986,1734987033466,-500.0,0.00013698,2]
[346469987,1734987033475,-500.0,0.00013698,2]
[346469989,1734987033485,-500.0,0.00013698,2]
[346469991,1734987033495,-517.25016098,0.00013698,2]
[346469993,1734987033504,-1191.68,0.00013698,2]
[346469994,1734987033513,-848.16,0.00013698,2]
[346469996,1734987033523,-511.92,0.00013698,2]
[346469998,1734987033533,-505.34708306,0.00013698,2]
[346470000,1734987033543,-223.62173223,0.00013698,2]
[346470002,1734987033553,-152.47930859,0.00013698,2]
[346470005,1734987033562,-500.0,0.00013698,2]
[346470007,1734987033572,-500.0,0.00013698,2]
[346470008,1734987033582,-500.0,0.00013698,2]
[346470011,1734987033592,-570.86,0.00013698,2]
[346470012,1734987033602,-500.0,0.00013698,2]
[346470015,1734987033612,-500.0,0.00013698,2]
[346470017,1734987033621,-500.0,0.00013698,2]
[346470019,1734987033633,-500.0,0.00013698,2]
[346470021,1734987033645,-834.02,0.00013698,2]
[346470023,1734987033655,-500.0,0.00013698,2]
[346470025,1734987033666,-1565.19,0.00013698,2]
[346470027,1734987033676,-500.0,0.00013698,2]
[346470028,1734987033686,-500.0,0.00013698,2]
[346470031,1734987033696,-500.0,0.00013698,2]
[346470033,1734987033706,-500.0,0.00013698,2]
[346470035,1734987033717,-1240.38,0.00013698,2]
[346470037,1734987033727,-500.0,0.00013698,2]
[346470039,1734987033736,-640.52,0.00013698,2]
[346470041,1734987033746,-500.0,0.00013698,2]
[346470043,1734987033756,-948.04,0.00013698,2]
[346470045,1734987033766,-500.0,0.00013698,2]
[346470047,1734987033775,-500.0,0.00013698,2]
[346470049,1734987033785,-998.65,0.00013698,2]
[346470051,1734987033795,-623.63,0.00013698,2]
[346470053,1734987033804,-556.05,0.00013698,2]
[346470055,1734987033814,-500.0,0.00013698,2]
[346470057,1734987033824,-500.0,0.00013698,2]
[346470059,1734987033833,-500.0,0.00013698,2]
[346470061,1734987033843,-500.0,0.00013698,2]
[346470063,1734987033852,-500.0,0.00013698,2]
[346470065,1734987033862,-500.0,0.00013698,2]
[346470067,1734987033872,-500.0,0.00013698,2]
[346470069,1734987033882,-500.0,0.00013698,2]
[346470071,1734987033892,-500.0,0.00013698,2]
[346470073,1734987033903,-500.0,0.00013698,2]
[346470075,1734987033913,-500.0,0.00013698,2]
[346470077,1734987033923,-1335.03,0.00013698,2]
[346470079,1734987033933,-500.0,0.00013698,2]
[346470081,1734987033943,-500.0,0.00013698,2]
[346470083,1734987033953,-500.0,0.00013698,2]
[346470085,1734987033962,-566.87,0.00013698,2]
[346470087,1734987033972,-500.0,0.00013698,2]
[346470089,1734987033981,-500.0,0.00013698,2]
[346470091,1734987033991,-155.940262,0.00013698,2]
[346470093,1734987034001,-500.0,0.00013698,2]
[346470095,1734987034010,-153.883577,0.00013698,2]
[346470097,1734987034020,-768.27,0.00013698,2]
[346470099,1734987034029,-1345.016081,0.00013698,2]
[346470101,1734987034039,-500.0,0.00013698,2]
[346470103,1734987034048,-751.19,0.00013698,2]
[346470105,1734987034058,-500.0,0.00013698,2]
[346470116,1734987034153,-1131.81,0.00013698,2]
[346470118,1734987034164,-500.0,0.00013698,2]
[346470120,1734987034174,-500.0,0.00013698,2]
[346470122,1734987034183,-1578.57803,0.00013698,2]
[346470124,1734987034193,-500.0,0.00013698,2]
[346470126,1734987034202,-500.0,0.00013698,2]
[346470128,1734987034212,-1549.83,0.00013698,2]
[346470130,1734987034221,-728.98,0.00013698,2]
[346470132,1734987034231,-500.0,0.00013698,2]
[346470134,1734987034244,-1145.27,0.00013698,2]
[346470136,1734987034253,-500.0,0.00013698,2]
[346470138,1734987034262,-500.0,0.00013698,2]
[346470140,1734987034272,-500.0,0.00013698,2]
[346470142,1734987034282,-500.0,0.00013698,2]
[346470144,1734987034294,-500.0,0.00013698,2]
[346470146,1734987034303,-500.0,0.00013698,2]
[346470148,1734987034312,-500.0,0.00013698,2]
[346470150,1734987034322,-500.0,0.00013698,2]
[346470152,1734987034331,-500.0,0.00013698,2]
[346470154,1734987034340,-500.0,0.00013698,2]
[346470156,1734987034349,-336.25407897,0.00013698,2]
[346470158,1734987034358,-500.0,0.00013698,2]
[346470160,1734987034367,-500.0,0.00013698,2]
[346470162,1734987034377,-500.0,0.00013698,2]
[346470164,1734987034386,-500.0,0.00013698,2]
[346470166,1734987034395,-360.77189647,0.00013698,2]
[346470168,1734987034404,-450.22319133,0.00013698,2]
[346470170,1734987034414,-741.44,0.00013698,2]
[346470172,1734987034423,-500.0,0.00013698,2]
[346470174,1734987034432,-500.0,0.00013698,2]
[346470176,1734987034441,-500.0,0.00013698,2]
[346470178,1734987034450,-903.37,0.00013698,2]
[346470180,1734987034460,-500.0,0.00013698,2]
[346470182,1734987034469,-849.37,0.00013698,2]
[346470184,1734987034479,-500.0,0.00013698,2]
[346470185,1734987034488,-500.0,0.00013698,2]
[346470186,1734987034497,-500.0,0.00013698,2]
[346470187,1734987034507,-513.08797627,0.00013698,2]
[346470188,1734987034516,-500.0,0.00013698,2]
[346470189,1734987034525,-500.0,0.00013698,2]
[346470190,1734987034534,-500.0,0.00013698,2]
[346470191,1734987034544,-1493.35,0.00013698,2]
[346470192,1734987034553,-753.15,0.00013698,2]
[346470193,1734987034563,-1034.91,0.00013698,2]
[346470194,1734987034574,-500.0,0.00013698,2]
[346470195,1734987034590,-692.92,0.00013698,2]
[346470196,1734987034612,-500.0,0.00013698,2]
[346470197,1734987034631,-500.0,0.00013698,2]
[346470198,1734987034641,-617.58,0.00013698,2]
[346470199,1734987034652,-500.0,0.00013698,2]
[346470200,1734987034662,-900.67,0.00013698,2]
[346470201,1734987034672,-790.69,0.00013698,2]
[346470202,1734987034682,-1192.54,0.00013698,2]
[346470203,1734987034692,-516.05,0.00013698,2]
[346470204,1734987034704,-500.0,0.00013698,2]
[346470205,1734987034714,-895.35,0.00013698,2]
[346470206,1734987034724,-500.0,0.00013698,2]
[346470207,1734987034733,-500.0,0.00013698,2]
[346470208,1734987034743,-500.0,0.00013698,2]
[346470209,1734987034753,-1291.9,0.00013698,2]
[346470210,1734987034763,-500.0,0.00013698,2]
[346470211,1734987034772,-500.0,0.00013698,2]
[346470212,1734987034782,-500.0,0.00013698,2]
[346470213,1734987034792,-902.81,0.00013698,2]
[346470214,1734987034801,-500.0,0.00013698,2]
[346470215,1734987034811,-926.75,0.00013698,2]
[346470216,1734987034820,-1110.41,0.00013698,2]
[346470217,1734987034830,-1555.91,0.00013698,2]
[346470218,1734987034840,-500.0,0.00013698,2]
[346470219,1734987034850,-500.0,0.00013698,2]
[346470220,1734987034860,-500.0,0.00013698,2]
[346470221,1734987034870,-500.0,0.00013698,2]
[346470222,1734987034880,-609.18763277,0.00013698,2]
[346470223,1734987034889,-500.0,0.00013698,2]
[346470224,1734987034903,-500.0,0.00013698,2]
[346470225,1734987034912,-500.0,0.00013698,2]
[346470226,1734987034922,-835.51,0.00013698,2]
[346470227,1734987034931,-500.0,0.00013698,2]
[346470228,1734987034940,-500.0,0.00013698,2]
[346470229,1734987034949,-767.42,0.00013698,2]
[346470230,1734987034959,-574.59995495,0.00013698,2]
[346470231,1734987034968,-500.0,0.00013698,2]
[346470232,1734987034978,-824.63,0.00013698,2]
[346470233,1734987034987,-500.0,0.00013698,2]
[346470234,1734987034997,-500.0,0.00013698,2]
[346470235,1734987035006,-500.0,0.00013698,2]
[346470236,1734987035015,-748.78,0.00013698,2]
[346470237,1734987035024,-500.0,0.00013698,2]
[346470238,1734987035033,-520.86,0.00013698,2]
[346470239,1734987035043,-1486.15,0.00013698,2]
[346470240,1734987035052,-500.0,0.00013698,2]
[346470241,1734987035062,-1357.61,0.00013698,2]
[346470242,1734987035071,-1104.83,0.00013698,2]
[346470243,1734987035080,-706.24,0.00013698,2]
[346470244,1734987035089,-701.33,0.00013698,2]
[346470245,1734987035098,-1268.01,0.00013698,2]
[346470246,1734987035107,-1243.13,0.00013698,2]
[346470247,1734987035116,-500.0,0.00013698,2]
[346470248,1734987035126,-500.0,0.00013698,2]
[346470249,1734987035135,-680.02,0.00013698,2]
[346470250,1734987035144,-500.0,0.00013698,2]
[346470251,1734987035156,-1479.53,0.00013698,2]
[346470252,1734987035165,-158.58854702,0.00013698,2]
[346470253,1734987035174,-690.25,0.00013698,2]
[346470254,1734987035184,-500.0,0.00013698,2]
[346470255,1734987035193,-1107.4,0.00013698,2]
[346470256,1734987035203,-1468.45,0.00013698,2]
[346470257,1734987035212,-500.0,0.00013698,2]
[346470258,1734987035221,-350.60350172,0.00013698,2]
[346470259,1734987035231,-500.0,0.00013698,2]
[346470260,1734987035242,-500.0,0.00013698,2]
[346470261,1734987035252,-546.08,0.00013698,2]
[346470262,1734987035261,-500.0,0.00013698,2]
[346470263,1734987035270,-500.0,0.00013698,2]
[346470264,1734987035280,-860.9,0.00013698,2]
[346470265,1734987035290,-700.0,0.00013698,2]
[346470266,1734987035299,-833.51,0.00013698,2]
[346470267,1734987035308,-500.0,0.00013698,2]
[346470268,1734987035318,-671.08,0.00013698,2]
[346470269,1734987035328,-1194.0,0.00013698,2]
[346470270,1734987035339,-500.0,0.00013698,2]
[346470271,1734987035348,-812.06,0.00013698,2]
[346470272,1734987035358,-500.0,0.00013698,2]
[346470273,1734987035367,-610.23,0.00013698,2]
[346470274,1734987035376,-500.0,0.00013698,2]
[346470275,1734987035386,-500.0,0.00013698,2]
[346470276,1734987035399,-500.0,0.00013698,2]
[346470277,1734987035410,-146.17970756,0.00013698,2]
[346470278,1734987035960,-566.97029244,0.00013698,2]
[346470279,1734987035970,-648.2,0.00013698,2]
[346470280,1734987035979,-541.38378305,0.00013698,2]
[346470281,1734987035988,-500.0,0.00013698,2]
[346470282,1734987035997,-500.0,0.00013698,2]
[346470283,1734987036006,-500.0,0.00013698,2]
[346470284,1734987036016,-500.0,0.00013698,2]
[346470285,1734987036025,-500.0,0.00013698,2]
[346470286,1734987036034,-500.0,0.00013698,2]
[346470287,1734987036043,-500.0,0.00013698,2]
[346470288,1734987036052,-500.0,0.00013698,2]
[346470289,1734987036061,-769.79,0.00013698,2]
[346470290,1734987036071,-501.34916681,0.00013698,2]
[346470291,1734987036080,-887.83,0.00013698,2]
[346470292,1734987036089,-500.0,0.00013698,2]
[346470293,1734987036099,-500.0,0.00013698,2]
[346470294,1734987036108,-500.0,0.00013698,2]
[346470295,1734987036117,-650.93,0.00013698,2]
[346470296,1734987036126,-500.0,0.00013698,2]
[346470297,1734987036135,-500.0,0.00013698,2]
[346470298,1734987036144,-1480.17,0.00013698,2]
[346470299,1734987036157,-1386.52,0.00013698,2]
[346470300,1734987036166,-1138.63,0.00013698,2]
[346470301,1734987036175,-500.0,0.00013698,2]
[346470302,1734987036184,-517.06,0.00013698,2]
[346470303,1734987036194,-500.0,0.00013698,2]
[346470304,1734987036203,-500.0,0.00013698,2]
[346470305,1734987036212,-500.0,0.00013698,2]
[346470306,1734987036221,-720.71,0.00013698,2]
[346470307,1734987036230,-670.47,0.00013698,2]
[346470308,1734987036241,-500.0,0.00013698,2]
[346470309,1734987036252,-500.0,0.00013698,2]
[346470310,1734987036261,-500.0,0.00013698,2]
[346470311,1734987036270,-660.84,0.00013698,2]
[346470312,1734987036279,-1065.59,0.00013698,2]
[346470313,1734987036288,-1172.46,0.00013698,2]
[346470314,1734987036297,-66.43407822,0.00013698,2]
[346470315,1734987036310,-433.56592178,0.00013698,2]
[346470316,1734987036320,-1220.89,0.00013698,2]
[346470317,1734987036330,-500.0,0.00013698,2]
[346470318,1734987036339,-602.2,0.00013698,2]
[346470319,1734987036348,-500.0,0.00013698,2]
[346470320,1734987036358,-846.14,0.00013698,2]
[346470321,1734987036367,-500.0,0.00013698,2]
[346470322,1734987036376,-719.09,0.00013698,2]
[346470323,1734987036386,-500.0,0.00013698,2]
[346470324,1734987036395,-158.54587386,0.00013698,2]
[346470325,1734987036412,-341.45412614,0.00013698,2]
[346470326,1734987036421,-408.9206443,0.00013698,2]
[346470327,1734987036432,-91.0793557,0.00013698,2]
[346470328,1734987036441,-689.65,0.00013698,2]
[346470329,1734987036450,-352.14665064,0.00013698,2]
[346470330,1734987036462,-654.39334936,0.00013698,2]
[346470331,1734987036473,-500.0,0.00013698,2]
[346470332,1734987036482,-549.21768309,0.00013698,2]
[346470333,1734987036507,-395.78231691,0.00013698,2]
[346470334,1734987036516,-500.0,0.00013698,2]
[346470335,1734987036526,-500.0,0.00013698,2]
[346470336,1734987036535,-1473.77,0.00013698,2]
[346470337,1734987036545,-500.0,0.00013698,2]
[346470338,1734987036554,-288.77200309,0.00013698,2]
[346470339,1734987036614,-296.50799691,0.00013698,2]
[346470340,1734987036623,-500.0,0.00013698,2]
[346470341,1734987036633,-936.66,0.00013698,2]
[346470342,1734987036642,-500.0,0.00013698,2]
[346470343,1734987036656,-934.11,0.00013698,2]
[346470344,1734987036666,-500.0,0.00013698,2]
[346470345,1734987036675,-1712.2,0.00013698,2]
[346470346,1734987036684,-500.0,0.00013698,2]
[346470347,1734987036694,-500.0,0.00013698,2]
[346470348,1734987036703,-151.28882109,0.00013698,2]
[346470349,1734987036715,-348.71117891,0.00013698,2]
[346470350,1734987036724,-447.98882109,0.00013698,2]
[346470351,1734987036770,-481.61117891,0.00013698,2]
[346470352,1734987036780,-1877.05,0.00013698,2]
[346470353,1734987036789,-901.27834295,0.00013698,2]
[346470354,1734987036811,-855.03165705,0.00013698,2]
[346470355,1734987036820,-500.0,0.00013698,2]
[346470356,1734987036829,-500.0,0.00013698,2]
[346470357,1734987036838,-786.54,0.00013698,2]
[346470358,1734987036847,-500.0,0.00013698,2]
[346470359,1734987036856,-500.0,0.00013698,2]
[346470360,1734987036866,-659.61,0.00013698,2]
[346470361,1734987036875,-1564.61,0.00013698,2]
[346470362,1734987036885,-500.0,0.00013698,2]
[346470363,1734987036895,-500.0,0.00013698,2]
[346470364,1734987036906,-1616.09,0.00013698,2]
[346470365,1734987036916,-645.95,0.00013698,2]
[346470366,1734987036926,-875.57,0.00013698,2]
[346470367,1734987036935,-500.0,0.00013698,2]
[346470368,1734987036944,-900.93,0.00013698,2]
[346470369,1734987036953,-500.0,0.00013698,2]
[346470370,1734987036962,-500.0,0.00013698,2]
[346470371,1734987036972,-658.02,0.00013698,2]
[346470372,1734987036981,-500.0,0.00013698,2]
[346470373,1734987036990,-500.0,0.00013698,2]
[346470374,1734987036999,-500.0,0.00013698,2]
[346470375,1734987037009,-624.72,0.00013698,2]
[346470376,1734987037018,-1433.66,0.00013698,2]
[346470377,1734987037027,-523.85,0.00013698,2]
[346470378,1734987037036,-164.99808279,0.00013698,2]
[346470379,1734987037046,-500.0,0.00013698,2]
[346470380,1734987037055,-500.0,0.00013698,2]
[346470381,1734987037065,-515.69,0.00013698,2]
[346470382,1734987037075,-622.48,0.00013698,2]
[346470383,1734987037084,-500.0,0.00013698,2]
[346470384,1734987037094,-500.0,0.00013698,2]
[346470385,1734987037103,-795.5,0.00013698,2]
[346470386,1734987037112,-989.98,0.00013698,2]
[346470387,1734987037122,-500.0,0.00013698,2]
[346470388,1734987037131,-500.0,0.00013698,2]
[346470389,1734987037140,-500.0,0.00013698,2]
[346470390,1734987037151,-500.0,0.00013698,2]
[346470391,1734987037161,-500.0,0.00013698,2]
[346470392,1734987037170,-500.0,0.00013698,2]
[346470393,1734987037179,-500.0,0.00013698,2]
[346470394,1734987037188,-500.0,0.00013698,2]
[346470395,1734987037197,-1382.01,0.00013698,2]
[346470396,1734987037206,-597.29,0.00013698,2]
[346470397,1734987037215,-610.39,0.00013698,2]
[346470398,1734987037225,-500.0,0.00013698,2]
[346470399,1734987037234,-545.04,0.00013698,2]
[346470400,1734987037245,-697.66,0.00013698,2]
[346470401,1734987037255,-500.0,0.00013698,2]
[346470402,1734987037264,-756.93,0.00013698,2]
[346470403,1734987037273,-760.8,0.00013698,2]
[346470404,1734987037282,-500.0,0.00013698,2]
[346470405,1734987037292,-1584.61,0.00013698,2]
[346470406,1734987037303,-500.0,0.00013698,2]
[346470407,1734987037312,-704.71,0.00013698,2]
[346470408,1734987037322,-500.0,0.00013698,2]
[346470409,1734987037332,-758.37,0.00013698,2]
[346470410,1734987037341,-500.0,0.00013698,2]
[346470411,1734987037350,-500.0,0.00013698,2]
[346470412,1734987037359,-500.0,0.00013698,2]
[346470413,1734987037368,-500.0,0.00013698,2]
[346470414,1734987037377,-501.5906094,0.00013698,2]
[346470415,1734987037387,-1319.45,0.00013698,2]
[346470416,1734987037396,-500.0,0.00013698,2]
[346470417,1734987037406,-632.88,0.00013698,2]
[346470418,1734987037416,-1597.87,0.00013698,2]
[346470419,1734987037425,-500.0,0.00013698,2]
[346470420,1734987037434,-500.0,0.00013698,2]
[346470421,1734987037444,-500.0,0.00013698,2]
[346470422,1734987037453,-500.0,0.00013698,2]
[346470423,1734987037462,-879.05,0.00013698,2]
[346470424,1734987037471,-507.86,0.00013698,2]
[346470425,1734987037481,-500.0,0.00013698,2]
[346470426,1734987037491,-500.0,0.00013698,2]
[346470427,1734987037499,-828.03,0.00013698,2]
[346470428,1734987037508,-500.0,0.00013698,2]
[346470429,1734987037518,-608.45,0.00013698,2]
[346470430,1734987037527,-500.0,0.00013698,2]
[346470431,1734987037535,-500.0,0.00013698,2]
[346470432,1734987037545,-500.0,0.00013698,2]
[346470433,1734987037554,-500.0,0.00013698,2]
[346470434,1734987037563,-1474.8,0.00013698,2]
[346470435,1734987037572,-500.0,0.00013698,2]
[346470436,1734987037581,-500.0,0.00013698,2]
[346470437,1734987037591,-500.0,0.00013698,2]
[346470438,1734987037600,-1282.66,0.00013698,2]
[346470439,1734987037609,-1304.8,0.00013698,2]
[346470440,1734987037619,-500.0,0.00013698,2]
[346470441,1734987037628,-500.0,0.00013698,2]
[346470442,1734987037637,-1424.9,0.00013698,2]
[346470443,1734987037648,-905.17,0.00013698,2]
[346470444,1734987037659,-1226.15,0.00013698,2]
[346470445,1734987037668,-500.0,0.00013698,2]
[346470446,1734987037678,-500.0,0.00013698,2]
[346470447,1734987037821,-500.0,0.00013698,2]
[346470448,1734987037833,-1030.62,0.00013698,2]
[346470449,1734987037842,-500.0,0.00013698,2]
[346470450,1734987037851,-1195.08,0.00013698,2]
[346470451,1734987037860,-770.24,0.00013698,2]
[346470452,1734987037869,-1175.2,0.00013698,2]
[346470453,1734987037879,-500.0,0.00013698,2]
[346470454,1734987037888,-803.98,0.00013698,2]
[346470455,1734987037901,-678.48,0.00013698,2]
[346470456,1734987037910,-499.80980142,0.00013698,2]
[346470457,1734987037919,-3149.26,0.00013698,2]
[346470458,1734987037928,-1244.32,0.00013698,2]
[346470459,1734987037937,-819.94,0.00013698,2]
[346470460,1734987037946,-500.0,0.00013698,2]
[346470461,1734987037955,-738.22,0.00013698,2]
[346470462,1734987037964,-500.0,0.00013698,2]
[346470463,1734987037973,-583.94,0.00013698,2]
[346470464,1734987037983,-500.0,0.00013698,2]
[346470465,1734987037992,-1569.53,0.00013698,2]
[346470466,1734987038001,-950.42,0.00013698,2]
[346470468,1734987038010,-500.0,0.00013698,2]
[346470470,1734987038020,-160.77320266,0.00013698,2]
[346470472,1734987038029,-1160.65,0.00013698,2]
[346470473,1734987038038,-500.0,0.00013698,2]
[346470474,1734987038047,-626.36,0.00013698,2]
[346470475,1734987038056,-664.27,0.00013698,2]
[346470476,1734987038065,-500.0,0.00013698,2]
[346470477,1734987038074,-500.0,0.00013698,2]
[346470478,1734987038083,-500.0,0.00013698,2]
[346470479,1734987038092,-706.75,0.00013698,2]
[346470480,1734987038101,-500.0,0.00013698,2]
[346470481,1734987038111,-944.18,0.00013698,2]
[346470482,1734987038119,-500.0,0.00013698,2]
[346470483,1734987038129,-520.35,0.00013698,2]
[346470484,1734987038137,-866.38,0.00013698,2]
[346470486,1734987038147,-3513.17,0.00013698,2]
[346470488,1734987038157,-500.0,0.00013698,2]
[346470490,1734987038166,-500.0,0.00013698,2]
[346470491,1734987038175,-2111.69,0.00013698,2]
[346470492,1734987038184,-500.0,0.00013698,2]
[346470493,1734987038193,-500.0,0.00013698,2]
[346470494,1734987038202,-500.0,0.00013698,2]
[346470495,1734987038211,-500.0,0.00013698,2]
[346470496,1734987038220,-500.0,0.00013698,2]
[346470497,1734987038230,-618.60031528,0.00013698,2]
[346470498,1734987038251,-1864.07,0.00013698,2]
[346470499,1734987038260,-906.76,0.00013698,2]
[346470500,1734987038269,-500.0,0.00013698,2]
[346470501,1734987038279,-18275.48,0.00013698,2]
[346470502,1734987038288,-1412.23,0.00013698,2]
[346470503,1734987038298,-500.0,0.00013698,2]
[346470504,1734987038307,-500.0,0.00013698,2]
[346470505,1734987038316,-547.3,0.00013698,2]
[346470506,1734987038326,-500.0,0.00013698,2]
[346470507,1734987038336,-500.0,0.00013698,2]
[346470508,1734987038345,-752.09,0.00013698,2]
[346470509,1734987038354,-1011.2,0.00013698,2]
[346470510,1734987038363,-617.33694343,0.00013698,2]
[346470511,1734987038372,-3397.01,0.00013698,2]
[346470512,1734987038381,-1473.52,0.00013698,2]
[346470513,1734987038390,-1007.06,0.00013698,2]
[346470514,1734987038401,-500.0,0.00013698,2]
[346470515,1734987038410,-500.0,0.00013698,2]
[346470516,1734987038419,-901.63,0.00013698,2]
[346470517,1734987038429,-500.0,0.00013698,2]
[346470518,1734987038439,-500.0,0.00013698,2]
[346470519,1734987038448,-622.22,0.00013698,2]
[346470520,1734987038457,-1578.47,0.00013698,2]
[346470521,1734987038466,-500.0,0.00013698,2]
[346470522,1734987038475,-500.0,0.00013698,2]
[346470523,1734987038484,-500.0,0.00013698,2]
[346470524,1734987038493,-500.0,0.00013698,2]
[346470525,1734987038502,-6762.18,0.00013698,2]
[346470526,1734987038512,-965.95,0.00013698,2]
[346470527,1734987038521,-500.0,0.00013698,2]
[346470528,1734987038530,-2714.87,0.00013698,2]
[346470529,1734987038539,-500.0,0.00013698,2]
[346470530,1734987038548,-1033.38,0.00013698,2]
[346470531,1734987038558,-500.0,0.00013698,2]
[346470532,1734987038567,-500.0,0.00013698,2]
[346470533,1734987038576,-1497.54,0.00013698,2]
[346470534,1734987038586,-502.05344853,0.00013698,2]
[346470535,1734987038596,-501.71787192,0.00013698,2]
[346470536,1734987038605,-827.41,0.00013698,2]
[346470537,1734987038615,-3282.52,0.00013698,2]
[346470538,1734987038624,-4183.3,0.00013698,2]
[346470539,1734987038634,-831.67,0.00013698,2]
[346470540,1734987038643,-500.0,0.00013698,2]
[346470541,1734987038654,-500.0,0.00013698,2]
[346470542,1734987038664,-2522.46,0.00013698,2]
[346470544,1734987038673,-500.0,0.00013698,2]
[346470546,1734987038682,-505.28781327,0.00013698,2]
[346470547,1734987038692,-500.01,0.00013698,2]
[346470548,1734987038701,-500.0,0.00013698,2]
[346470549,1734987038710,-500.0,0.00013698,2]
[346470550,1734987038719,-4989.68,0.00013698,2]
[346470551,1734987038729,-574.45,0.00013698,2]
[346470553,1734987038739,-500.0,0.00013698,2]
[346470555,1734987038748,-819.8,0.00013698,2]
[346470557,1734987038758,-500.0,0.00013698,2]
[346470559,1734987038768,-500.0,0.00013698,2]
[346470561,1734987038777,-500.0,0.00013698,2]
[346470563,1734987038787,-500.0,0.00013698,2]
[346470565,1734987038796,-500.0,0.00013698,2]
[346470567,1734987038806,-500.0,0.00013698,2]
[346470569,1734987038815,-500.0,0.00013698,2]
[346470571,1734987038824,-643.78,0.00013698,2]
[346470573,1734987038834,-500.0,0.00013698,2]
[346470575,1734987038844,-500.0,0.00013698,2]
[346470576,1734987038853,-500.0,0.00013698,2]
[346470577,1734987038863,-500.0,0.00013698,2]
[346470578,1734987038873,-500.0,0.00013698,2]
[346470579,1734987038882,-500.0,0.00013698,2]
[346470580,1734987038892,-15336.14,0.00013698,2]
[346470581,1734987038903,-1012.21,0.00013698,2]
[346470582,1734987038912,-500.0,0.00013698,2]
[346470583,1734987038922,-500.0,0.00013698,2]
[346470584,1734987038931,-1031.0,0.00013698,2]
[346470585,1734987038941,-579.61608306,0.00013698,2]
[346470586,1734987038950,-500.0,0.00013698,2]
[346470587,1734987038960,-1829.82,0.00013698,2]
[346470588,1734987038969,-919.77,0.00013698,2]
[346470589,1734987038978,-500.0,0.00013698,2]
[346470590,1734987038988,-500.0,0.00013698,2]